fUSD/lending_fUSD_20251014
["ID","MTS","AMOUNT","RATE_DAILY","PERIOD"]
[391279527,1760465441387,-500.0,0.00016438,2]
[391279529,1760465441396,-500.0,0.00016438,2]
[391279531,1760465441406,-500.0,0.00016438,2]
[391279533,1760465441416,-500.0,0.00016438,2]
[391279535,1760465441425,-500.0,0.00016438,2]
[391279537,1760465441435,-151.0,0.00016438,2]
[391279539,1760465441444,-500.0,0.00016438,2]
[391279541,1760465441453,-500.0,0.00016438,2]
[391279543,1760465441463,-500.0,0.00016438,2]
[391279545,1760465441472,-694.69,0.00016438,2]
[391279547,1760465441481,-500.0,0.00016438,2]
[391279549,1760465441490,-500.0,0.00016438,2]
[391279551,1760465441499,-1064.76,0.00016438,2]
[391279553,1760465441510,-500.0,0.00016438,2]
[391279555,1760465441522,-500.0,0.00016438,2]
[391279557,1760465441531,-2141.49,0.00016438,2]
[391279559,1760465441541,-500.0,0.00016438,2]
[391279561,1760465441551,-232.34606711,0.00016438,2]
[391279563,1760465441561,-500.0,0.00016438,2]
[391279566,1760465441573,-500.0,0.00016438,2]
[391279568,1760465441584,-306.12524024,0.00016438,2]
[391279569,1760465441594,-500.0,0.00016438,2]
[391279571,1760465441603,-500.0,0.00016438,2]
[391279573,1760465441613,-151.0,0.00016438,2]
[391279575,1760465441625,-500.0,0.00016438,2]
[391279577,1760465441635,-195.27576706,0.00016438,2]
[391279579,1760465441643,-151.0,0.00016438,2]
[391279580,1760465441652,-500.0,0.00016438,2]
[391279582,1760465441662,-500.0,0.00016438,2]
[391279583,1760465441671,-151.0,0.00016438,2]
[391279584,1760465441686,-500.0,0.00016438,2]
[391279585,1760465441697,-500.0,0.00016438,2]
[391279586,1760465441707,-648.21,0.00016438,2]
[391279587,1760465441718,-500.0,0.00016438,2]
[391279588,1760465441727,-526.81,0.00016438,2]
[391279590,1760465441736,-500.0,0.00016438,2]
[391279592,1760465441745,-500.0,0.00016438,2]
[391279594,1760465441754,-610.24,0.00016438,2]
[391279596,1760465441768,-1538.05,0.00016438,2]
[391279597,1760465441778,-1073.33,0.00016438,2]
[391279598,1760465441787,-584.97253975,0.00016438,2]
[391279599,1760465441796,-500.0,0.00016438,2]
[391279600,1760465441805,-500.0,0.00016438,2]
[391279601,1760465441814,-500.0,0.00016438,2]
[391279602,1760465441824,-500.0,0.00016438,2]
[391279603,1760465441834,-614.97,0.00016438,2]
[391279604,1760465441843,-1452.55,0.00016438,2]
[391279605,1760465441852,-500.0,0.00016438,2]
[391279606,1760465441861,-529.51,0.00016438,2]
[391279607,1760465441870,-675.04,0.00016438,2]
[391279608,1760465441879,-1362.46,0.00016438,2]
[391279609,1760465441888,-500.0,0.00016438,2]
[391279610,1760465441897,-500.0,0.00016438,2]
[391279612,1760465441906,-500.0,0.00016438,2]
[391279613,1760465441915,-500.0,0.00016438,2]
[391279614,1760465441924,-1358.96,0.00016438,2]
[391279615,1760465441934,-500.0,0.00016438,2]
[391279616,1760465441943,-1003.96,0.00016438,2]
[391279617,1760465441953,-500.0,0.00016438,2]
[391279618,1760465441962,-992.08,0.00016438,2]
[391279619,1760465441971,-500.0,0.00016438,2]
[391279620,1760465441980,-151.0,0.00016438,2]
[391279621,1760465441989,-500.0,0.00016438,2]
[391279622,1760465441999,-2338.87,0.00016438,2]
[391279623,1760465442011,-500.0,0.00016438,2]
[391279624,1760465442021,-500.0,0.00016438,2]
[391279625,1760465442030,-500.0,0.00016438,2]
[391279626,1760465442039,-500.0,0.00016438,2]
[391279627,1760465442048,-700.28,0.00016438,2]
[391279628,1760465442058,-712.46,0.00016438,2]
[391279629,1760465442067,-1448.77,0.00016438,2]
[391279630,1760465442078,-1148.88,0.00016438,2]
[391279631,1760465442096,-910.84,0.00016438,2]
[391279632,1760465442105,-500.0,0.00016438,2]
[391279633,1760465442114,-500.0,0.00016438,2]
[391279634,1760465442123,-2063.25,0.00016438,2]
[391279635,1760465442132,-762.6,0.00016438,2]
[391279636,1760465442145,-500.0,0.00016438,2]
[391279637,1760465442154,-500.0,0.00016438,2]
[391279638,1760465442163,-551.02,0.00016438,2]
[391279639,1760465442172,-500.0,0.00016438,2]
[391279640,1760465442180,-724.95,0.00016438,2]
[391279641,1760465442189,-500.0,0.00016438,2]
[391279642,1760465442199,-1751.78,0.00016438,2]
[391279643,1760465442208,-500.0,0.00016438,2]
[391279644,1760465442218,-971.27,0.00016438,2]
[391279645,1760465442227,-961.59,0.00016438,2]
[391279646,1760465442236,-1084.08,0.00016438,2]
[391279647,1760465442246,-682.17,0.00016438,2]
[391279648,1760465442255,-711.85,0.00016438,2]
[391279649,1760465442265,-500.0,0.00016438,2]
[391279650,1760465442274,-500.0,0.00016438,2]
[391279651,1760465442283,-500.0,0.00016438,2]
[391279652,1760465442292,-500.0,0.00016438,2]
[391279653,1760465442301,-500.0,0.00016438,2]
[391279654,1760465442310,-659.28,0.00016438,2]
[391279655,1760465442321,-1484.03,0.00016438,2]
[391279656,1760465442330,-500.0,0.00016438,2]
[391279657,1760465442339,-548.46,0.00016438,2]
[391279658,1760465442348,-500.0,0.00016438,2]
[391279659,1760465442356,-1045.77,0.00016438,2]
[391279660,1760465442365,-500.0,0.00016438,2]
[391279661,1760465442374,-902.36,0.00016438,2]
[391279662,1760465442383,-500.0,0.00016438,2]
[391279663,1760465442392,-1967.56,0.00016438,2]
[391279664,1760465442401,-1145.12,0.00016438,2]
[391279665,1760465442410,-1975.45,0.00016438,2]
[391279666,1760465442419,-500.0,0.00016438,2]
[391279667,1760465442428,-500.0,0.00016438,2]
[391279668,1760465442437,-500.0,0.00016438,2]
[391279669,1760465442446,-1086.94,0.00016438,2]
[391279670,1760465442456,-637.7,0.00016438,2]
[391279671,1760465442464,-718.5,0.00016438,2]
[391279672,1760465442473,-1723.57,0.00016438,2]
[391279673,1760465442482,-500.0,0.00016438,2]
[391279674,1760465442491,-500.0,0.00016438,2]
[391279675,1760465442500,-506.39,0.00016438,2]
[391279676,1760465442508,-500.0,0.00016438,2]
[391279677,1760465442519,-500.0,0.00016438,2]
[391279678,1760465442528,-500.0,0.00016438,2]
[391279679,1760465442538,-500.0,0.00016438,2]
[391279680,1760465442547,-500.0,0.00016438,2]
[391279681,1760465442556,-500.0,0.00016438,2]
[391279682,1760465442565,-500.0,0.00016438,2]
[391279683,1760465442574,-500.0,0.00016438,2]
[391279684,1760465442583,-3334.86,0.00016438,2]
[391279685,1760465442592,-500.0,0.00016438,2]
[391279686,1760465442602,-500.0,0.00016438,2]
[391279687,1760465442611,-556.82,0.00016438,2]
[391279688,1760465442620,-588.66604386,0.00016438,2]
[391279689,1760465442630,-500.0,0.00016438,2]
[391279690,1760465442639,-526.36,0.00016438,2]
[391279691,1760465442648,-1116.73,0.00016438,2]
[391279692,1760465442658,-1382.09,0.00016438,2]
[391279693,1760465442667,-500.0,0.00016438,2]
[391279694,1760465442677,-500.0,0.00016438,2]
[391279695,1760465442686,-500.0,0.00016438,2]
[391279696,1760465442695,-151.0,0.00016438,2]
[391279697,1760465442704,-500.0,0.00016438,2]
[391279698,1760465442713,-525.02348932,0.00016438,2]
[391279699,1760465442723,-714.94,0.00016438,2]
[391279700,1760465442732,-500.0,0.00016438,2]
[391279701,1760465442742,-500.0,0.00016438,2]
[391279702,1760465442751,-500.0,0.00016438,2]
[391279703,1760465442760,-500.0,0.00016438,2]
[391279704,1760465442769,-548.26,0.00016438,2]
[391279705,1760465442778,-679.66,0.00016438,2]
[391279706,1760465442787,-1839.77,0.00016438,2]
[391279707,1760465442795,-1699.79,0.00016438,2]
[391279708,1760465442804,-742.14,0.00016438,2]
[391279709,1760465442814,-500.0,0.00016438,2]
[391279710,1760465442823,-500.0,0.00016438,2]
[391279717,1760465443056,-500.0,0.00016438,2]
[391279718,1760465443101,-500.0,0.00016438,2]
[391279719,1760465443111,-500.0,0.00016438,2]
[391279720,1760465443120,-986.95,0.00016438,2]
[391279721,1760465443131,-1062.55,0.00016438,2]
[391279722,1760465443140,-500.0,0.00016438,2]
[391279723,1760465443149,-500.0,0.00016438,2]
[391279724,1760465443160,-500.0,0.00016438,2]
[391279725,1760465443169,-500.0,0.00016438,2]
[391279726,1760465443179,-2500.39,0.00016438,2]
[391279727,1760465443188,-3279.2,0.00016438,2]
[391279728,1760465443199,-500.0,0.00016438,2]
[391279729,1760465443208,-499.12940763,0.00016438,2]
[391279730,1760465443217,-500.0,0.00016438,2]
[391279731,1760465443227,-500.0,0.00016438,2]
[391279732,1760465443236,-1218.11,0.00016438,2]
[391279733,1760465443246,-500.0,0.00016438,2]
[391279734,1760465443255,-1970.74,0.00016438,2]
[391279735,1760465443265,-500.0,0.00016438,2]
[391279736,1760465443275,-151.0,0.00016438,2]
[391279737,1760465443284,-151.0,0.00016438,2]
[391279738,1760465443293,-500.0,0.00016438,2]
[391279739,1760465443302,-1423.8,0.00016438,2]
[391279740,1760465443311,-1980.27,0.00016438,2]
[391279741,1760465443321,-500.0,0.00016438,2]
[391279742,1760465443330,-500.0,0.00016438,2]
[391279743,1760465443339,-500.0,0.00016438,2]
[391279744,1760465443348,-500.0,0.00016438,2]
[391279745,1760465443357,-500.0,0.00016438,2]
[391279746,1760465443366,-500.0,0.00016438,2]
[391279747,1760465443376,-500.0,0.00016438,2]
[391279748,1760465443385,-501.4,0.00016438,2]
[391279749,1760465443394,-500.0,0.00016438,2]
[391279750,1760465443404,-564.59191011,0.00016438,2]
[391279751,1760465443413,-500.0,0.00016438,2]
[391279752,1760465443422,-500.0,0.00016438,2]
[391279753,1760465443432,-794.19,0.00016438,2]
[391279754,1760465443441,-500.0,0.00016438,2]
[391279755,1760465443450,-2877.45,0.00016438,2]
[391279756,1760465443459,-151.0,0.00016438,2]
[391279757,1760465443468,-500.0,0.00016438,2]
[391279758,1760465443476,-500.0,0.00016438,2]
[391279759,1760465443486,-500.0,0.00016438,2]
[391279760,1760465443494,-924.79,0.00016438,2]
[391279761,1760465443504,-500.0,0.00016438,2]
[391279762,1760465443515,-500.0,0.00016438,2]
[391279763,1760465443524,-500.0,0.00016438,2]
[391279764,1760465443533,-500.0,0.00016438,2]
[391279765,1760465443542,-1044.88,0.00016438,2]
[391279766,1760465443551,-500.0,0.00016438,2]
[391279767,1760465443560,-500.0,0.00016438,2]
[391279768,1760465443569,-500.0,0.00016438,2]
[391279769,1760465443578,-858.19,0.00016438,2]
[391279770,1760465443587,-1023.57,0.00016438,2]
[391279771,1760465443596,-500.0,0.00016438,2]
[391279772,1760465443605,-151.0,0.00016438,2]
[391279773,1760465443615,-151.0,0.00016438,2]
[391279774,1760465443624,-151.0,0.00016438,2]
[391279775,1760465443633,-151.0,0.00016438,2]
[391279776,1760465443642,-500.0,0.00016438,2]
[391279777,1760465443651,-522.4,0.00016438,2]
[391279778,1760465443660,-1362.57,0.00016438,2]
[391279779,1760465443669,-500.0,0.00016438,2]
[391279780,1760465443679,-689.15,0.00016438,2]
[391279781,1760465443690,-2606.41,0.00016438,2]
[391279782,1760465443698,-500.0,0.00016438,2]
[391279783,1760465443708,-628.97,0.00016438,2]
[391279784,1760465443717,-500.0,0.00016438,2]
[391279785,1760465443726,-816.05,0.00016438,2]
[391279786,1760465443735,-264.00273451,0.00016438,2]
[391279787,1760465443744,-500.0,0.00016438,2]
[391279788,1760465443754,-2026.77,0.00016438,2]
[391279789,1760465443764,-500.0,0.00016438,2]
[391279790,1760465443774,-500.0,0.00016438,2]
[391279791,1760465443783,-2261.07,0.00016438,2]
[391279792,1760465443791,-500.0,0.00016438,2]
[391279793,1760465443800,-151.0,0.00016438,2]
[391279794,1760465443809,-500.0,0.00016438,2]
[391279795,1760465443818,-500.0,0.00016438,2]
[391279796,1760465443828,-151.0,0.00016438,2]
[391279797,1760465443837,-1095.6,0.00016438,2]
[391279798,1760465443846,-1844.74,0.00016438,2]
[391279799,1760465443855,-500.0,0.00016438,2]
[391279800,1760465443864,-500.0,0.00016438,2]
[391279801,1760465443873,-151.0,0.00016438,2]
[391279802,1760465443882,-664.99,0.00016438,2]
[391279803,1760465443891,-151.0,0.00016438,2]
[391279804,1760465443901,-1132.87,0.00016438,2]
[391279805,1760465443910,-1273.72,0.00016438,2]
[391279806,1760465443919,-151.0,0.00016438,2]
[391279807,1760465443928,-500.0,0.00016438,2]
[391279808,1760465443937,-154.136337,0.00016438,2]
[391279809,1760465443946,-151.0,0.00016438,2]
[391279810,1760465443955,-151.0,0.00016438,2]
[391279811,1760465443964,-1341.49,0.00016438,2]
[391279812,1760465443972,-643.17,0.00016438,2]
[391279813,1760465443981,-500.0,0.00016438,2]
[391279814,1760465443991,-1211.17,0.00016438,2]
[391279815,1760465443999,-981.54,0.00016438,2]
[391279816,1760465444009,-500.0,0.00016438,2]
[391279817,1760465444018,-500.0,0.00016438,2]
[391279818,1760465444028,-500.0,0.00016438,2]
[391279819,1760465444037,-2317.8,0.00016438,2]
[391279820,1760465444046,-500.0,0.00016438,2]
[391279821,1760465444055,-500.0,0.00016438,2]
[391279822,1760465444064,-500.0,0.00016438,2]
[391279823,1760465444073,-500.0,0.00016438,2]
[391279824,1760465444084,-500.0,0.00016438,2]
[391279825,1760465444094,-2029.39,0.00016438,2]
[391279826,1760465444103,-500.0,0.00016438,2]
[391279827,1760465444112,-759.6,0.00016438,2]
[391279828,1760465444121,-500.0,0.00016438,2]
[391279829,1760465444131,-2060.38,0.00016438,2]
[391279830,1760465444140,-500.0,0.00016438,2]
[391279831,1760465444150,-500.0,0.00016438,2]
[391279832,1760465444162,-792.88,0.00016438,2]
[391279833,1760465444172,-1809.16,0.00016438,2]
[391279834,1760465444181,-500.0,0.00016438,2]
[391279835,1760465444191,-500.0,0.00016438,2]
[391279836,1760465444200,-500.0,0.00016438,2]
[391279837,1760465444209,-500.0,0.00016438,2]
[391279838,1760465444219,-595.99,0.00016438,2]
[391279839,1760465444228,-979.33,0.00016438,2]
[391279840,1760465444244,-1654.26,0.00016438,2]
[391279841,1760465444255,-500.0,0.00016438,2]
[391279842,1760465444266,-500.0,0.00016438,2]
[391279843,1760465444276,-500.0,0.00016438,2]
[391279844,1760465444287,-958.18,0.00016438,2]
[391279845,1760465444298,-500.0,0.00016438,2]
[391279846,1760465444308,-500.0,0.00016438,2]
[391279847,1760465444317,-500.0,0.00016438,2]
[391279848,1760465444326,-1161.54,0.00016438,2]
[391279849,1760465444335,-500.0,0.00016438,2]
[391279850,1760465444345,-940.09,0.00016438,2]
[391279851,1760465444355,-551.43,0.00016438,2]
[391279852,1760465444367,-500.0,0.00016438,2]
[391279853,1760465444376,-1889.47,0.00016438,2]
[391279854,1760465444386,-2177.91,0.00016438,2]
[391279855,1760465444395,-500.0,0.00016438,2]
[391279856,1760465444405,-151.0,0.00016438,2]
[391279857,1760465444414,-151.0,0.00016438,2]
[391279858,1760465444424,-500.0,0.00016438,2]
[391279859,1760465444433,-500.0,0.00016438,2]
[391279860,1760465444443,-151.0,0.00016438,2]
[391279861,1760465444452,-236.251494,0.00016438,2]
[391279862,1760465444461,-151.0,0.00016438,2]
[391279863,1760465444470,-1159.41,0.00016438,2]
[391279864,1760465444479,-151.0,0.00016438,2]
[391279865,1760465444488,-1808.0,0.00016438,2]
[391279866,1760465444498,-500.0,0.00016438,2]
[391279867,1760465444507,-500.0,0.00016438,2]
[391279868,1760465444519,-1554.54,0.00016438,2]
[391279869,1760465444528,-571.25,0.00016438,2]
[391279870,1760465444537,-500.0,0.00016438,2]
[391279871,1760465444546,-1742.07,0.00016438,2]
[391279872,1760465444555,-500.0,0.00016438,2]
[391279873,1760465444565,-500.0,0.00016438,2]
[391279874,1760465444574,-2416.81,0.00016438,2]
[391279875,1760465444584,-500.0,0.00016438,2]
[391279876,1760465444593,-2422.51,0.00016438,2]
[391279877,1760465444602,-158.4394521,0.00016438,2]
[391279878,1760465444611,-500.0,0.00016438,2]
[391279879,1760465444620,-1042.79,0.00016438,2]
[391279880,1760465444629,-151.0,0.00016438,2]
[391279881,1760465444639,-178.322567,0.00016438,2]
[391279882,1760465444647,-538.68,0.00016438,2]
[391279883,1760465444657,-500.0,0.00016438,2]
[391279884,1760465444666,-500.0,0.00016438,2]
[391279885,1760465444675,-713.86,0.00016438,2]
[391279886,1760465444683,-500.0,0.00016438,2]
[391279887,1760465444692,-708.92,0.00016438,2]
[391279888,1760465444702,-500.0,0.00016438,2]
[391279889,1760465444711,-500.0,0.00016438,2]
[391279890,1760465444720,-2443.15,0.00016438,2]
[391279891,1760465444729,-1799.66,0.00016438,2]
[391279892,1760465444738,-669.7,0.00016438,2]
[391279893,1760465444747,-500.0,0.00016438,2]
[391279894,1760465444757,-500.0,0.00016438,2]
[391279895,1760465444768,-1627.19,0.00016438,2]
[391279896,1760465444777,-700.48,0.00016438,2]
[391279897,1760465444787,-500.0,0.00016438,2]
[391279898,1760465444797,-1013.78,0.00016438,2]
[391279899,1760465444806,-619.89,0.00016438,2]
[391279900,1760465444816,-164.374606,0.00016438,2]
[391279901,1760465444825,-151.0,0.00016438,2]
[391279902,1760465444834,-151.0,0.00016438,2]
[391279903,1760465444844,-641.17,0.00016438,2]
[391279904,1760465444853,-151.0,0.00016438,2]
[391279905,1760465444863,-151.0,0.00016438,2]
[391279906,1760465444871,-500.0,0.00016438,2]
[391279907,1760465444881,-500.0,0.00016438,2]
[391279908,1760465444890,-759.78,0.00016438,2]
[391279909,1760465444899,-151.0,0.00016438,2]
[391279910,1760465444908,-151.0,0.00016438,2]
[391279911,1760465444917,-585.18227258,0.00016438,2]
[391279912,1760465444926,-533.02,0.00016438,2]
[391279913,1760465444935,-151.0,0.00016438,2]
[391279914,1760465444944,-500.0,0.00016438,2]
[391279915,1760465444954,-909.03,0.00016438,2]
[391279916,1760465444963,-151.0,0.00016438,2]
[391279917,1760465444972,-496.51590103,0.00016438,2]
[391279918,1760465444981,-500.0,0.00016438,2]
[391279919,1760465444990,-500.0,0.00016438,2]
[391279920,1760465445000,-151.0,0.00016438,2]
[391279921,1760465445009,-1185.97,0.00016438,2]
[391279922,1760465445019,-151.0,0.00016438,2]
[391279923,1760465445028,-1322.73,0.00016438,2]
[391279924,1760465445037,-728.85,0.00016438,2]
[391279925,1760465445046,-500.0,0.00016438,2]
[391279926,1760465445056,-500.0,0.00016438,2]
[391279927,1760465445065,-500.0,0.00016438,2]
[391279928,1760465445075,-500.0,0.00016438,2]
[391279929,1760465445087,-877.1,0.00016438,2]
[391279930,1760465445095,-1665.18,0.00016438,2]
[391279931,1760465445105,-721.19,0.00016438,2]
[391279932,1760465445115,-500.0,0.00016438,2]
[391279933,1760465445125,-500.0,0.00016438,2]
[391279934,1760465445135,-1236.17,0.00016438,2]
[391279935,1760465445144,-758.26,0.00016438,2]
[391279936,1760465445154,-500.0,0.00016438,2]
[391279937,1760465445165,-1047.71,0.00016438,2]
[391279938,1760465445175,-500.0,0.00016438,2]
[391279939,1760465445184,-1775.89,0.00016438,2]
[391279940,1760465445194,-653.99,0.00016438,2]
[391279941,1760465445203,-702.61,0.00016438,2]
[391279942,1760465445212,-500.0,0.00016438,2]
[391279943,1760465445221,-506.29,0.00016438,2]
[391279944,1760465445230,-500.0,0.00016438,2]
[391279945,1760465445239,-500.0,0.00016438,2]
[391279946,1760465445248,-500.0,0.00016438,2]
[391279947,1760465445258,-500.0,0.00016438,2]
[391279948,1760465445268,-1879.34,0.00016438,2]
[391279949,1760465445277,-500.0,0.00016438,2]
[391279950,1760465445286,-500.0,0.00016438,2]
[391279951,1760465445296,-1111.33,0.00016438,2]
[391279952,1760465445305,-1152.39,0.00016438,2]
[391279953,1760465445315,-1596.24,0.00016438,2]
[391279954,1760465445324,-500.0,0.00016438,2]
[391279955,1760465445333,-500.0,0.00016438,2]
[391279956,1760465445342,-500.0,0.00016438,2]
[391279957,1760465445456,-500.0,0.00016438,2]
[391279958,1760465445465,-1791.64,0.00016438,2]
[391279959,1760465445474,-500.0,0.00016438,2]
[391279960,1760465445483,-504.70397885,0.00016438,2]
[391279961,1760465445492,-729.98,0.00016438,2]
[391279962,1760465445501,-500.0,0.00016438,2]
[391279963,1760465445510,-2044.62,0.00016438,2]
[391279964,1760465445519,-500.0,0.00016438,2]
[391279965,1760465445528,-151.0,0.00016438,2]
[391279966,1760465445538,-556.01,0.00016438,2]
[391279967,1760465445547,-500.0,0.00016438,2]
[391279968,1760465445556,-500.0,0.00016438,2]
[391279969,1760465445565,-631.36,0.00016438,2]
[391279970,1760465445574,-1342.27,0.00016438,2]
[391279971,1760465445583,-500.0,0.00016438,2]
[391279972,1760465445592,-611.41,0.00016438,2]
[391279973,1760465445601,-704.62,0.00016438,2]
[391279974,1760465445610,-843.55,0.00016438,2]
[391279975,1760465445619,-1187.71,0.00016438,2]
[391279976,1760465445627,-500.0,0.00016438,2]
[391279977,1760465445636,-1345.55,0.00016438,2]
[391279978,1760465445645,-1635.62,0.00016438,2]
[391279979,1760465445654,-500.0,0.00016438,2]
[391279980,1760465445663,-500.0,0.00016438,2]
[391279981,1760465445671,-1318.5,0.00016438,2]
[391279982,1760465445680,-500.0,0.00016438,2]
[391279983,1760465445689,-1052.53,0.00016438,2]
[391279984,1760465445698,-616.95,0.00016438,2]
[391279985,1760465445707,-500.0,0.00016438,2]
[391279986,1760465445716,-500.0,0.00016438,2]
[391279987,1760465445725,-527.88735458,0.00016438,2]
[391279988,1760465445733,-500.0,0.00016438,2]
[391279989,1760465445742,-500.0,0.00016438,2]
[391279990,1760465445751,-1273.8,0.00016438,2]
[391279991,1760465445760,-500.0,0.00016438,2]
[391279992,1760465445769,-1561.66,0.00016438,2]
[391279993,1760465445778,-613.36,0.00016438,2]
[391279994,1760465445787,-1565.34,0.00016438,2]
[391279995,1760465445796,-564.67,0.00016438,2]
[391279996,1760465445805,-712.27,0.00016438,2]
[391279997,1760465445814,-500.0,0.00016438,2]
[391279998,1760465445823,-673.54,0.00016438,2]
[391279999,1760465445832,-151.0,0.00016438,2]
[391280000,1760465445842,-151.0,0.00016438,2]
[391280001,1760465445851,-500.0,0.00016438,2]
[391280002,1760465445859,-2012.1,0.00016438,2]
[391280003,1760465445868,-151.0,0.00016438,2]
[391280004,1760465445877,-500.0,0.00016438,2]
[391280005,1760465445886,-151.0,0.00016438,2]
[391280006,1760465445895,-506.6,0.00016438,2]
[391280007,1760465445904,-151.0,0.00016438,2]
[391280008,1760465445912,-995.29,0.00016438,2]
[391280009,1760465445921,-151.0,0.00016438,2]
[391280010,1760465445930,-500.0,0.00016438,2]
[391280011,1760465445939,-151.0,0.00016438,2]
[391280012,1760465445948,-151.0,0.00016438,2]
[391280013,1760465445957,-500.0,0.00016438,2]
[391280014,1760465445966,-1014.38,0.00016438,2]
[391280015,1760465445975,-500.0,0.00016438,2]
[391280016,1760465445984,-980.81,0.00016438,2]
[391280017,1760465445994,-500.0,0.00016438,2]
[391280018,1760465446003,-1668.2,0.00016438,2]
[391280019,1760465446012,-500.0,0.00016438,2]
[391280020,1760465446022,-500.0,0.00016438,2]
[391280021,1760465446031,-2316.02,0.00016438,2]
[391280022,1760465446040,-847.26,0.00016438,2]
[391280023,1760465446048,-1203.11,0.00016438,2]
[391280024,1760465446057,-500.0,0.00016438,2]
[391280025,1760465446066,-500.0,0.00016438,2]
[391280026,1760465446075,-500.0,0.00016438,2]
[391280027,1760465446086,-500.0,0.00016438,2]
[391280028,1760465446095,-500.0,0.00016438,2]
[391280029,1760465446104,-506.97,0.00016438,2]
[391280030,1760465446114,-500.0,0.00016438,2]
[391280031,1760465446123,-151.0,0.00016438,2]
[391280032,1760465446132,-151.0,0.00016438,2]
[391280033,1760465446141,-500.0,0.00016438,2]
[391280034,1760465446150,-500.0,0.00016438,2]
[391280035,1760465446161,-884.38,0.00016438,2]
[391280036,1760465446170,-967.21,0.00016438,2]
[391280037,1760465446179,-500.0,0.00016438,2]
[391280038,1760465446188,-151.0,0.00016438,2]
[391280039,1760465446198,-500.0,0.00016438,2]
[391280040,1760465446207,-1446.01,0.00016438,2]
[391280041,1760465446216,-182.44282,0.00016438,2]
[391280042,1760465446225,-3856.26,0.00016438,2]
[391280043,1760465446234,-500.0,0.00016438,2]
[391280044,1760465446243,-500.0,0.00016438,2]
[391280045,1760465446252,-500.0,0.00016438,2]
[391280046,1760465446263,-500.0,0.00016438,2]
[391280047,1760465446272,-968.19,0.00016438,2]
[391280048,1760465446281,-500.0,0.00016438,2]
[391280049,1760465446291,-500.0,0.00016438,2]
[391280050,1760465446300,-812.44,0.00016438,2]
[391280051,1760465446309,-636.56,0.00016438,2]
[391280052,1760465446318,-500.0,0.00016438,2]
[391280053,1760465446327,-1146.35,0.00016438,2]
[391280054,1760465446336,-500.0,0.00016438,2]
[391280055,1760465446345,-500.0,0.00016438,2]
[391280056,1760465446354,-500.0,0.00016438,2]
[391280058,1760465446363,-500.0,0.00016438,2]
[391280060,1760465446373,-500.0,0.00016438,2]
[391280061,1760465446382,-885.69,0.00016438,2]
[391280062,1760465446390,-500.0,0.00016438,2]
[391280064,1760465446399,-500.0,0.00016438,2]
[391280065,1760465446409,-1359.54,0.00016438,2]
[391280067,1760465446418,-500.0,0.00016438,2]
[391280069,1760465446427,-1181.22,0.00016438,2]